bitfinex/quotes_SOLUSD_20250731
["timestamp","ask_amount","ask_price","bid_price","bid_amount"]
[1753968636460,56.05230898,177.13,177.09,1.6291]
[1753968636983,6.03625588,177.1,177.05,1.5588]
[1753968637175,50.567,177.09,177.02,6.1303]
[1753968637482,50.567,177.09,177.02,11.77930713]
[1753968637483,9.987,177.08,177.02,11.77930713]
[1753968637658,9.987,177.08,177.07,6.03625588]
[1753968638369,9.987,177.08,177.05,6.03625588]
[1753968638683,21.67047536,177.08,177.03,6.03625588]
[1753968638870,6.03625588,177.06,177.02,17.8155383]
[1753968639185,5.64721948,177.08,177.01,7.2081284]
[1753968639355,4.0787458,177.07,177.03,6.03625588]
[1753968639692,6.03625588,177.06,177.01,7.2081284]
[1753968639981,6.03625588,177.07,177.02,6.03625588]
[1753968640166,6.03625588,177.07,177.01,7.2081284]
[1753968640365,6.03625588,177.07,177.01,1.5588]
[1753968640567,6.03625588,177.06,177.01,7.20810077]
[1753968640882,50.4215983,177.06,177.01,11.4003983]
[1753968641053,50.4215983,177.06,177.01,17.04960015]
[1753968642175,40.58,177.06,177.01,7.20800185]
[1753968642376,50.4215983,177.06,177.01,7.20800185]
[1753968642568,50.4215983,177.06,177.01,17.04960015]
[1753968643095,40.58,177.06,177.02,9.8415983]
[1753968643268,50.4215983,177.07,177.01,7.20800185]
[1753968643462,7.76083053,177.06,177.01,7.20800185]
[1753968643668,3.67665458,177.06,177.03,9.8415983]
[1753968644285,3.67665458,177.06,177.03,5.64847833]
[1753968644765,7.76306171,177.05,177.03,5.64847833]
[1753968644968,50.4215983,177.07,177.03,5.64847833]
[1753968645176,50.4215983,177.07,177.02,15.49059208]
[1753968645177,7.76466653,177.06,177.02,15.49059208]
[1753968645370,4.08629697,177.05,177.02,9.8415983]
[1753968645678,4.08629697,177.05,177.01,7.20810469]
[1753968646193,13.92789527,177.04,177.0,5.64967322]
[1753968646355,7.76641119,177.03,177.0,5.64967322]
[1753968646555,9.8415983,177.01,176.87,10.79337427]
[1753968646791,7.76570994,177.0,176.93,9.8415983]
[1753968647097,58.18730824,176.99,176.94,5.65157098]
[1753968647271,58.18730824,176.99,176.88,50.4215983]
[1753968647272,7.76570994,176.99,176.95,9.8415983]
[1753968647476,40.58,177.03,176.98,155.49195427]
[1753968647786,7.76836484,177.02,177.0,9.8415983]
[1753968647962,7.76836484,177.01,177.0,9.8415983]
[1753968648162,4.08865332,177.01,177.0,15.49131581]
[1753968648381,7.76641273,177.02,176.99,5.64996183]
[1753968648566,4.08865332,177.01,177.0,9.8415983]
[1753968648868,40.58,177.03,177.0,9.8415983]
[1753968649069,7.76450566,177.02,177.0,9.8415983]
[1753968649391,3.67770189,177.02,176.99,5.64996183]
[1753968649561,4.08487832,177.01,177.0,9.8415983]
[1753968649766,7.76088328,177.02,177.0,9.8415983]
[1753968649959,3.67600496,177.02,177.01,9.8415983]
[1753968650161,4.08510048,177.02,176.99,5.64996183]
[1753968650363,3.67483803,177.02,177.0,9.8415983]
[1753968650865,3.67483803,177.02,176.98,145.65028469]
[1753968651062,3.67483803,177.02,177.0,9.8415983]
[1753968651558,40.58,177.03,177.01,9.8415983]
[1753968651887,5.64786339,177.06,177.02,9.8415983]
[1753968651888,40.6,177.06,177.02,9.8415983]
[1753968652083,4.08463875,177.05,177.0,16.78468397]
[1753968652284,3.67710202,177.1,177.04,16.78468397]
[1753968652462,4.08600008,177.09,177.04,16.78468397]
[1753968652662,4.08584515,177.08,177.04,16.78468397]
[1753968652862,3.67710202,177.1,177.04,16.78468397]
[1753968653173,4.08661499,177.09,177.08,9.8415983]
[1753968653374,3.67710202,177.1,177.08,9.8415983]
[1753968653695,5.64495948,177.15,177.09,9.8415983]
[1753968653995,11.8518762,177.14,177.11,9.8415983]
[1753968654283,7.76489228,177.13,177.12,9.8415983]
[1753968654497,7.76489228,177.13,177.11,9.8415983]
[1753968654682,40.6,177.15,177.12,9.8415983]
[1753968654988,7.76590745,177.14,177.12,9.8415983]
[1753968655294,3.67833214,177.14,177.13,9.8415983]
[1753968655667,3.68023136,177.16,177.13,9.8415983]
[1753968655862,3.71023136,177.18,177.1,29.60435898]
[1753968656177,3.71023136,177.18,177.17,9.8415983]
[1753968656487,0.03,177.18,177.17,9.8415983]
[1753968656873,0.03,177.18,177.16,9.8415983]
[1753968657073,0.03,177.18,177.14,9.8415983]
[1753968657278,7.80619578,177.18,177.14,9.8415983]
[1753968657466,3.71337063,177.18,177.15,9.8415983]
[1753968657668,0.03,177.18,177.15,9.8415983]
[1753968657863,4.1241503,177.18,177.15,9.8415983]
[1753968658084,7.80752093,177.18,177.15,9.8415983]
[1753968658371,3.71337063,177.18,177.15,9.8415983]
[1753968658697,0.03,177.18,177.15,9.8415983]
[1753968659219,0.03,177.18,177.17,9.8415983]
[1753968659679,0.03,177.18,177.16,9.8415983]
[1753968659880,5.67401702,177.18,177.13,1.6007]
[1753968660192,3.71552167,177.18,177.13,9.8415983]
[1753968660391,9.8715983,177.18,177.11,5.64620857]
[1753968660695,9.8715983,177.18,177.1,9.8415983]
[1753968660696,58.34564017,177.17,177.1,9.8415983]
[1753968660992,9.987,177.17,177.16,9.8415983]
[1753968661192,9.987,177.17,177.15,9.8415983]
[1753968661591,9.8415983,177.16,177.08,7.24779517]
[1753968661890,9.987,177.15,177.12,9.8415983]
[1753968662076,9.987,177.15,177.14,9.8415983]
[1753968662282,9.987,177.15,177.13,9.8415983]
[1753968662486,19.8285983,177.15,177.08,7.24779517]
[1753968662686,9.987,177.15,177.11,9.8415983]
[1753968662992,9.987,177.15,177.14,9.8415983]
[1753968663191,9.987,177.15,177.09,16.78468397]
[1753968663403,0.03,177.18,177.14,16.2184983]
[1753968663580,0.03,177.18,177.17,9.8415983]
[1753968663912,0.03,177.18,177.17,26.62628227]
[1753968664197,0.03,177.23,177.22,9.8415983]
[1753968664494,0.03,177.23,177.22,15.48430228]
[1753968664677,0.03,177.23,177.22,32.26898625]
[1753968664876,0.03,177.23,177.22,40.17078625]
[1753968665390,0.03,177.23,177.22,23.38610228]
[1753968665584,0.03,177.23,177.22,9.8415983]
[1753968665900,9.8715983,177.23,177.18,1.5249]
[1753968666107,9.8415983,177.21,177.18,1.5249]
[1753968666406,9.8415983,177.22,177.17,9.8415983]
[1753968666605,9.8415983,177.22,177.18,9.8415983]
[1753968666782,5.64276203,177.22,177.18,9.8415983]
[1753968667089,15.51405012,177.23,177.19,9.8415983]
[1753968667289,0.03,177.23,177.22,9.8415983]
[1753968667881,0.03,177.23,177.17,16.78468397]
[1753968668116,15.51399128,177.23,177.15,22.42959257]
[1753968668290,15.51399128,177.23,177.18,9.8415983]
[1753968668809,0.03,177.23,177.16,16.78468397]
[1753968669190,0.03,177.23,177.22,9.8415983]
[1753968669409,0.03,177.23,177.16,16.78468397]
[1753968669709,0.03,177.23,177.2,9.8415983]
[1753968670008,0.03,177.23,177.21,9.8415983]
[1753968670219,0.03,177.23,177.22,9.8415983]
[1753968670403,0.03,177.23,177.22,33.82408625]
[1753968670912,5.63947996,177.33,177.22,48.49511659]
[1753968671208,66.82,177.34,177.22,48.49511659]
[1753968671209,10.087,177.34,177.32,9.8415983]
[1753968671396,3.69218446,177.33,177.31,9.8415983]
[1753968671590,3.69218446,177.33,177.29,9.8415983]
[1753968671811,3.69218446,177.33,177.3,9.8415983]
[1753968672002,3.69218446,177.33,177.26,16.78468397]
[1753968672199,9.987,177.32,177.22,7.19780398]
[1753968672417,9.8415983,177.32,177.27,9.8415983]
[1753968672595,9.8415983,177.3,177.25,9.8415983]
[1753968672921,9.8415983,177.29,177.22,42.3151]
[1753968673090,9.8415983,177.29,177.24,9.8415983]
[1753968673290,9.8415983,177.28,177.23,9.8415983]
[1753968673486,9.8415983,177.27,177.23,9.8415983]
[1753968673795,9.8415983,177.25,177.2,9.8415983]
[1753968674001,9.8415983,177.24,177.2,9.8415983]
[1753968674194,9.8415983,177.24,177.19,40.76]
[1753968674402,26.0,177.29,177.19,50.6015983]
[1753968674596,9.8415983,177.26,177.21,9.8415983]
[1753968674999,9.8415983,177.31,177.25,9.8415983]
[1753968675201,13.93853633,177.3,177.25,9.8415983]
[1753968675409,9.8415983,177.31,177.26,9.8415983]
[1753968675620,9.30024595,177.37,177.3,9.8415983]
[1753968675785,13.8319638,177.36,177.33,9.8415983]
[1753968675990,4.09688273,177.35,177.32,9.8415983]
[1753968676203,18.0359721,177.35,177.3,9.8415983]
[1753968676411,4.09688273,177.34,177.31,9.8415983]
[1753968676599,5.63888575,177.34,177.28,1.5349]
[1753968676817,5.63866112,177.35,177.32,9.8415983]
[1753968677206,12.78397369,177.38,177.28,7.17561691]
[1753968677413,8.18575342,177.37,177.35,9.8415983]
[1753968677608,4.09287671,177.36,177.35,9.8415983]
[1753968677818,5.63761416,177.38,177.35,9.8415983]
[1753968678003,8.18520043,177.37,177.29,16.78468397]
[1753968678198,4.09287671,177.36,177.28,1.5349]
[1753968678399,9.8415983,177.35,177.31,9.8415983]
[1753968678618,9.8415983,177.35,177.32,9.8415983]
[1753968678619,5.6385678,177.35,177.32,9.8415983]
[1753968678804,5.6385678,177.35,177.31,9.8415983]
[1753968679007,5.6385678,177.35,177.32,9.8415983]
[1753968679317,5.6385678,177.35,177.31,9.8415983]
[1753968680131,5.6385678,177.35,177.32,9.8415983]
[1753968680646,5.63697857,177.4,177.34,9.8415983]
[1753968680933,9.8415983,177.38,177.33,9.8415983]
[1753968681112,4.08698693,177.37,177.33,9.8415983]
[1753968681713,9.8415983,177.34,177.28,1.5349]
[1753968681913,26.0,177.38,177.3,9.8415983]
[1753968682113,9.8415983,177.36,177.31,9.8415983]
[1753968682322,4.08466716,177.35,177.31,9.8415983]
[1753968682522,4.08466716,177.35,177.32,9.8415983]
[1753968682830,9.8415983,177.38,177.34,9.8415983]
[1753968683006,4.08501466,177.37,177.33,9.8415983]
[1753968683530,9.8415983,177.34,177.29,9.8415983]
[1753968683711,9.8415983,177.33,177.28,1.5349]
[1753968684041,26.0,177.38,177.28,1.5349]
[1753968684042,9.8415983,177.34,177.29,9.8415983]
[1753968684817,5.63920374,177.33,177.29,9.8415983]
[1753968685320,3.67579875,177.33,177.29,9.8415983]
[1753968685516,13.51739705,177.33,177.28,11.3764983]
[1753968685699,3.67348649,177.32,177.26,16.2283983]
[1753968685901,9.8415983,177.33,177.28,9.8415983]
[1753968686135,26.0,177.36,177.28,9.8415983]
[1753968686311,11.83811696,177.35,177.28,9.8415983]
[1753968686513,11.83811696,177.34,177.28,9.8415983]
[1753968686727,5.63952176,177.32,177.26,12.02815513]
[1753968687031,5.63952176,177.32,177.28,9.8415983]
[1753968687032,9.31290832,177.32,177.28,9.8415983]
[1753968687231,19.15450662,177.32,177.27,9.8415983]
[1753968687434,19.15450662,177.32,177.26,6.3868]
[1753968687435,9.8415983,177.31,177.26,9.8415983]
[1753968687641,15.48112006,177.32,177.27,9.8415983]
[1753968687839,7.75165606,177.31,177.27,9.8415983]
[1753968688011,3.67123862,177.31,177.28,9.8415983]
[1753968688221,3.67123862,177.31,177.27,9.8415983]
[1753968688524,3.67123862,177.31,177.21,40.73346549]
[1753968688525,9.8415983,177.28,177.19,7.25364148]
[1753968688728,29.57992448,177.32,177.22,9.8415983]
[1753968688729,15.48296572,177.27,177.22,9.8415983]
[1753968689042,15.48296572,177.27,177.2,5.64304112]
[1753968689043,5.63983982,177.31,177.26,9.8415983]
[1753968689334,4.08036487,177.3,177.28,9.8415983]
[1753968689535,7.75216604,177.3,177.26,9.8415983]
[1753968689737,9.8415983,177.28,177.19,33.25384932]
[1753968689921,9.8415983,177.26,177.19,48.03384932]
[1753968690121,9.8415983,177.25,177.2,9.8415983]
[1753968690537,9.8415983,177.23,177.19,1.6102]
[1753968690713,15.48413654,177.23,177.19,1.6102]
[1753968691035,15.48413654,177.23,177.19,11.4517983]
[1753968691220,5.64253824,177.23,177.19,11.4517983]
[1753968691543,5.64205017,177.25,177.22,9.8415983]
[1753968691926,3.66991885,177.26,177.23,9.8415983]
[1753968692127,3.66991885,177.26,177.19,7.25382253]
[1753968692128,3.66991885,177.26,177.22,9.8415983]
[1753968692333,3.66991885,177.26,177.24,9.8415983]
[1753968692524,3.66991885,177.26,177.19,21.3629709]
[1753968692525,3.66991885,177.28,177.25,9.8415983]
[1753968692844,5.64069532,177.29,177.26,9.8415983]
[1753968693046,4.0829108,177.28,177.26,9.8415983]
[1753968693218,3.66991885,177.28,177.26,9.8415983]
[1753968693421,9.8415983,177.3,177.2,57.58468397]
[1753968693422,3.66991885,177.29,177.22,5.64270398]
[1753968693639,4.08561487,177.28,177.24,9.8415983]
[1753968693947,3.67671998,177.28,177.22,5.64270398]
[1753968694125,9.8415983,177.25,177.19,1.6102]
[1753968694327,13.51831828,177.24,177.2,9.8415983]
[1753968694539,3.67671998,177.23,177.19,11.4517983]
[1753968694747,13.51831828,177.23,177.19,11.4517983]
[1753968694927,15.48366345,177.25,177.2,9.8415983]
[1753968695130,7.76743548,177.24,177.2,9.8415983]
[1753968695340,7.77212781,177.23,177.2,9.8415983]
[1753968695637,3.67904709,177.22,177.2,9.8415983]
[1753968695834,3.67904709,177.24,177.2,9.8415983]
[1753968696137,4.60956605,177.3,177.2,9.8415983]
[1753968696341,9.8415983,177.25,177.2,9.8415983]
[1753968696644,4.09416873,177.24,177.22,9.8415983]
[1753968696854,9.8415983,177.3,177.23,9.8415983]
[1753968697018,9.8415983,177.27,177.22,9.8415983]
[1753968697219,4.09948238,177.26,177.21,9.8415983]
[1753968697447,4.09948238,177.25,177.23,9.8415983]
[1753968697622,4.09948238,177.24,177.23,9.8415983]
[1753968697823,4.09948238,177.28,177.23,9.8415983]
[1753968698022,120.07858329,177.33,177.19,7.25381765]
[1753968698023,4.09948238,177.27,177.2,16.78468397]
[1753968698241,15.48048405,177.34,177.26,9.8415983]
[1753968698548,30.10905751,177.33,177.29,9.8415983]
[1753968698716,35.8415983,177.3,177.2,42.78468397]
[1753968698919,4.10905751,177.29,177.26,9.8415983]
[1753968699148,4.10905751,177.28,177.27,9.8415983]
[1753968699328,4.10905751,177.29,177.27,9.8415983]
[1753968699530,4.10905751,177.29,177.24,5.64181072]
[1753968699531,4.10905751,177.28,177.24,5.64181072]
[1753968699834,5.63920374,177.33,177.24,40.82]
[1753968700045,4.11113095,177.32,177.22,26.0]
[1753968700233,4.11113095,177.31,177.22,66.86]
[1753968700438,26.0,177.32,177.23,16.78468397]
[1753968700439,4.11113095,177.3,177.23,16.78468397]
[1753968700633,4.11113095,177.29,177.23,16.78468397]
[1753968700850,4.11113095,177.28,177.27,9.8415983]
[1753968701351,4.11113095,177.28,177.22,40.86]
[1753968701559,4.11113095,177.27,177.25,9.8415983]
[1753968701742,5.64082819,177.28,177.25,9.8415983]
[1753968701743,4.11113095,177.26,177.25,9.8415983]
[1753968702054,4.11113095,177.27,177.23,9.8415983]
[1753968702232,4.11113095,177.26,177.22,9.8415983]
[1753968702435,4.11113095,177.25,177.22,9.8415983]
[1753968702643,4.11113095,177.24,177.23,9.8415983]
[1753968702844,5.64143066,177.26,177.23,9.8415983]
[1753968703143,4.11113095,177.25,177.23,9.8415983]
[1753968703324,9.8415983,177.28,177.24,9.8415983]
[1753968703529,4.11240768,177.27,177.24,9.8415983]
[1753968703756,4.11240768,177.26,177.21,26.62628227]
[1753968704061,5.64009261,177.31,177.25,9.8415983]
[1753968704231,4.1125301,177.3,177.28,9.8415983]
[1753968704562,4.1125301,177.29,177.26,9.8415983]
[1753968704727,4.1125301,177.29,177.21,26.62628227]
[1753968704728,4.1125301,177.28,177.21,16.78468397]
[1753968704923,4.1125301,177.27,177.21,15.48442464]
[1753968705228,4.11346194,177.26,177.21,15.48442464]
[1753968705433,31.63977463,177.32,177.21,15.48442464]
[1753968705755,4.11412259,177.31,177.21,15.48442464]
[1753968705949,4.11412259,177.3,177.21,15.48442464]
[1753968706142,4.11412259,177.29,177.21,15.48442464]
[1753968706340,4.11412259,177.28,177.27,9.8415983]
[1753968706956,4.11412259,177.28,177.21,16.78468397]
[1753968707126,4.11412259,177.27,177.24,9.8415983]
[1753968707325,4.11412259,177.26,177.24,9.8415983]
[1753968707656,9.8415983,177.28,177.21,16.78468397]
[1753968707861,4.1173722,177.27,177.24,9.8415983]
[1753968708058,4.1173722,177.26,177.23,9.8415983]
[1753968708252,4.1173722,177.25,177.23,9.8415983]
[1753968708424,3.70622905,177.27,177.24,9.8415983]
[1753968708628,11.9452088,177.26,177.21,5.64293283]
[1753968708856,7.82571112,177.25,177.21,5.64293283]
[1753968709056,5.64111852,177.27,177.24,9.8415983]
[1753968709241,4.11949636,177.26,177.21,26.62628227]
[1753968709444,3.70657209,177.27,177.25,9.8415983]
[1753968709762,40.88,177.35,177.26,9.8415983]
[1753968709763,9.34584214,177.33,177.26,9.8415983]
[1753968710060,7.82678138,177.32,177.27,16.78468397]
[1753968710239,0.03,177.4,177.31,19.6831966]
[1753968710564,0.03,177.4,177.39,9.8415983]
[1753968710861,11.9797956,177.4,177.36,9.8415983]
[1753968711034,11.9497956,177.39,177.37,9.8415983]
[1753968711234,7.82870212,177.38,177.35,1.5517]
[1753968711437,0.03,177.4,177.35,1.5517]
[1753968711635,11.97699187,177.4,177.35,1.5517]
[1753968711948,11.94699187,177.39,177.35,1.5517]
[1753968712135,7.82683871,177.38,177.35,1.5517]
[1753968712337,0.03,177.4,177.35,1.5517]
[1753968712542,5.63729635,177.39,177.36,9.8415983]
[1753968712737,4.11916301,177.38,177.36,9.8415983]
[1753968713064,0.03,177.4,177.37,9.8415983]
[1753968713240,0.03,177.4,177.39,9.8415983]
[1753968714256,0.03,177.4,177.37,40.94]
[1753968714448,0.03,177.4,177.39,9.8415983]
[1753968716749,0.03,177.4,177.39,15.47889465]
[1753968716949,0.03,177.4,177.39,9.8415983]
[1753968717345,0.03,177.4,177.39,15.47889465]
[1753968718267,0.03,177.4,177.39,17.13699465]
[1753968718475,0.03,177.42,177.39,17.13699465]
[1753968718642,0.03,177.42,177.41,9.8415983]
[1753968718993,0.03,177.42,177.41,50.7815983]
[1753968720440,0.03,177.42,177.39,1.6581]
[1753968720640,9.8415983,177.41,177.36,9.8415983]
[1753968720875,16.78468397,177.41,177.34,9.8415983]
[1753968721047,26.03,177.42,177.36,9.8415983]
[1753968721242,0.03,177.42,177.39,9.8415983]
[1753968721441,0.03,177.42,177.41,9.8415983]
[1753968722450,0.03,177.42,177.37,40.96]
[1753968722779,0.03,177.42,177.41,9.8415983]
[1753968723965,0.03,177.42,177.41,50.8615983]
[1753968724475,0.03,177.42,177.41,52.4092983]
[1753968724665,0.03,177.42,177.41,58.04595914]
[1753968724867,0.03,177.42,177.41,62.0193487]
[1753968725564,0.03,177.42,177.41,56.38268786]
[1753968725776,0.03,177.42,177.38,13.81498786]
[1753968726096,0.03,177.42,177.41,13.81498786]
[1753968727385,0.03,177.42,177.41,54.81498786]
[1753968727770,0.03,177.42,177.41,60.4516487]
[1753968728168,0.03,177.42,177.39,26.0]
[1753968728392,0.03,177.42,177.38,13.81498786]
[1753968728599,0.03,177.42,177.37,41.04]
[1753968728889,0.03,177.42,177.38,13.81498786]
[1753968729090,39.81498786,177.41,177.36,13.81498786]
[1753968729672,5.63697857,177.4,177.36,13.81498786]
[1753968730082,31.63674889,177.41,177.36,13.81498786]
[1753968730294,26.0,177.41,177.34,46.67880114]
[1753968730476,0.03,177.42,177.39,13.81498786]
[1753968730674,0.03,177.42,177.38,13.81498786]
[1753968731491,0.03,177.42,177.34,46.67880114]
[1753968731692,0.03,177.42,177.41,13.81498786]
[1753968732270,0.03,177.42,177.39,41.0]
[1753968732772,0.03,177.42,177.38,13.81498786]
[1753968732977,0.03,177.42,177.39,13.81498786]
[1753968733873,0.03,177.42,177.41,13.81498786]
[1753968735292,0.03,177.42,177.39,13.81498786]
[1753968735496,0.03,177.42,177.38,13.81498786]
[1753968736807,0.03,177.42,177.4,13.81498786]
[1753968737093,0.03,177.42,177.41,13.81498786]
[1753968738911,13.84498786,177.42,177.37,41.0]
[1753968739208,0.03,177.42,177.39,13.81498786]
[1753968741006,0.03,177.42,177.41,13.81498786]
[1753968741692,0.03,177.42,177.38,0.06]
[1753968742115,13.84498786,177.42,177.38,0.06]
[1753968742419,5.6663951,177.42,177.38,13.87498786]
[1753968742585,13.84498786,177.42,177.38,13.87498786]
[1753968742790,19.4814817,177.42,177.38,0.06]
[1753968743114,5.66649384,177.42,177.38,13.87498786]
[1753968743420,19.4814817,177.42,177.38,13.87498786]
[1753968743596,0.03,177.42,177.39,13.81498786]
[1753968743801,0.03,177.42,177.41,13.81498786]
[1753968746297,0.03,177.42,177.38,5.69761416]
[1753968746607,0.03,177.42,177.41,13.81498786]
[1753968746809,0.03,177.42,177.41,9.79628652]
[1753968747728,9.82628652,177.42,177.38,0.06]
[1753968748092,0.03,177.42,177.38,9.85628652]
[1753968748295,0.03,177.42,177.39,9.79628652]
[1753968748719,9.82628652,177.42,177.38,0.06]
[1753968748911,0.03,177.42,177.39,9.79628652]
[1753968749421,0.03,177.42,177.4,9.79628652]
[1753968749593,0.03,177.42,177.41,9.79628652]
[1753968749799,0.03,177.42,177.4,9.79628652]
[1753968750298,0.03,177.42,177.41,9.79628652]
[1753968750603,0.03,177.42,177.4,9.79628652]
[1753968751125,9.79628652,177.41,177.38,0.06]
[1753968751421,9.82628652,177.42,177.38,0.06]
[1753968751927,0.03,177.42,177.38,9.85628652]
[1753968752127,3.72661091,177.42,177.38,9.85628652]
[1753968752300,127.91567931,177.42,177.4,9.79628652]
[1753968752607,120.10858329,177.42,177.41,9.79628652]
[1753968752801,123.81015411,177.42,177.41,9.79628652]
[1753968753105,132.04287469,177.42,177.41,9.79628652]
[1753968753301,120.10858329,177.42,177.41,9.79628652]
[1753968753497,0.03,177.42,177.41,9.79628652]
[1753968754508,0.03,177.42,177.41,15.43294736]
[1753968754723,0.03,177.42,177.41,56.29294736]
[1753968754922,0.03,177.42,177.41,9.79628652]
[1753968755095,0.03,177.42,177.41,15.43294736]
[1753968755296,0.03,177.42,177.41,9.79628652]
[1753968755500,16.78468397,177.41,177.38,0.06]
[1753968755725,9.79628652,177.39,177.38,0.06]
[1753968755937,13.50998323,177.39,177.38,0.06]
[1753968756128,3.71369671,177.39,177.38,9.85628652]
[1753968756424,23.27364678,177.39,177.38,0.06]
[1753968756602,27.40029929,177.39,177.38,0.06]
[1753968756805,17.60401277,177.39,177.38,0.06]
[1753968757008,11.96671642,177.39,177.38,0.06]
[1753968757324,11.97120073,177.39,177.38,0.06]
[1753968757703,3.71369671,177.39,177.38,0.06]
[1753968757922,19.14702926,177.4,177.38,0.06]
[1753968758225,7.84290033,177.39,177.38,0.06]
[1753968758601,17.61004934,177.39,177.38,0.06]
[1753968758801,44.19101983,177.39,177.38,0.06]
[1753968759403,70.19101983,177.39,177.38,0.06]
[1753968759616,70.18818721,177.39,177.38,0.06]
[1753968760027,60.39190069,177.39,177.38,0.06]
[1753968760214,43.60721672,177.39,177.38,0.06]
[1753968760415,53.40350324,177.39,177.38,0.06]
[1753968760635,85.14818721,177.39,177.38,0.06]
[1753968761116,85.14557273,177.39,177.38,0.06]
[1753968761434,70.18557273,177.39,177.38,0.06]
[1753968761604,70.18373089,177.39,177.38,0.06]
[1753968761808,37.96546405,177.39,177.38,0.06]
[1753968762218,11.96546405,177.39,177.38,0.06]
[1753968762529,9.82628652,177.42,177.38,0.06]
[1753968762530,0.03,177.42,177.39,5.63729635]
[1753968762726,0.03,177.42,177.41,9.79628652]
[1753968762931,0.03,177.42,177.38,0.06]
[1753968763126,9.79628652,177.4,177.38,0.06]
[1753968763309,26.0,177.41,177.38,0.06]
[1753968763724,26.0,177.41,177.38,9.85628652]
[1753968764327,9.79628652,177.4,177.38,0.06]
[1753968764741,35.79628652,177.41,177.38,0.06]
[1753968764913,26.0,177.41,177.38,0.06]
[1753968765114,35.79628652,177.41,177.38,0.06]
[1753968765626,41.4330137,177.41,177.38,0.06]
[1753968765935,9.79628652,177.4,177.38,0.06]
[1753968766135,9.79628652,177.39,177.38,0.06]
[1753968766336,13.50908773,177.39,177.38,0.06]
[1753968766641,3.71280121,177.39,177.38,0.06]
[1753968766845,9.35004151,177.4,177.38,0.06]
[1753968767010,31.63675544,177.41,177.38,0.06]
[1753968767218,31.63676262,177.41,177.38,0.06]
[1753968767525,26.0,177.41,177.38,0.06]
[1753968767729,0.03,177.42,177.39,9.79628652]
[1753968768260,0.03,177.42,177.38,9.85628652]
[1753968768447,0.03,177.42,177.4,9.79628652]
[1753968770055,0.03,177.42,177.38,9.85628652]
[1753968770252,0.03,177.42,177.39,9.79628652]
[1753968771255,0.03,177.42,177.4,9.79628652]
[1753968771860,0.03,177.42,177.41,9.79628652]
[1753968772356,0.03,177.42,177.38,5.69757443]
[1753968772357,0.03,177.42,177.4,9.79628652]
[1753968774641,0.03,177.42,177.41,9.79628652]
[1753968775039,0.03,177.42,177.4,9.79628652]
[1753968775243,0.03,177.42,177.38,5.69754093]
[1753968775445,0.03,177.42,177.4,9.79628652]
[1753968775661,0.03,177.42,177.39,9.79628652]
[1753968775873,9.79628652,177.4,177.38,0.06]
[1753968776073,3.74415244,177.42,177.38,0.06]
[1753968776074,9.79628652,177.41,177.38,0.06]
[1753968776256,3.71336023,177.4,177.38,0.06]
[1753968776759,9.79628652,177.39,177.38,0.06]
[1753968776965,35.93162707,177.39,177.38,0.06]
[1753968778044,61.93162707,177.39,177.38,0.06]
[1753968779269,33.83778264,177.39,177.38,0.06]
[1753968779450,29.71336023,177.39,177.38,0.06]
[1753968779652,39.50964675,177.39,177.38,0.06]
[1753968780264,70.18123671,177.39,177.38,0.06]
[1753968781050,45.1469431,177.39,177.38,0.06]
[1753968781746,70.17552297,177.39,177.38,0.06]
[1753968781951,44.17552297,177.39,177.38,0.06]
[1753968782467,34.37923645,177.39,177.38,0.06]
[1753968782781,3.71336023,177.39,177.38,0.06]
[1753968782984,3.74336023,177.42,177.38,9.85628652]
[1753968783279,3.73938318,177.42,177.4,9.79628652]
[1753968783483,13.5356697,177.42,177.38,0.06]
[1753968783648,3.70938318,177.41,177.38,0.06]
[1753968783950,3.70938318,177.41,177.38,9.85628652]
[1753968784152,13.5056697,177.41,177.38,0.06]
[1753968784361,16.81468397,177.42,177.38,0.06]
[1753968784362,13.5056697,177.4,177.38,0.06]
[1753968784553,3.70938318,177.39,177.38,0.06]
[1753968785057,45.14296605,177.39,177.38,0.06]
[1753968785645,3.70938318,177.39,177.38,0.06]
[1753968785852,26.0,177.4,177.38,0.06]
[1753968786070,13.5056697,177.39,177.38,0.06]
[1753968786252,177.59035367,177.39,177.38,0.06]
[1753968786453,185.83518599,177.39,177.38,0.06]
[1753968786660,185.83509554,177.39,177.38,0.06]
[1753968786873,42.78468397,177.37,177.36,0.06]
[1753968787057,70.17156598,177.37,177.36,0.06]